[Event "Titled Tuesday Blitz August 02 Early 2022"]
[White "Piesik, Piotr"]
[Black "Bryakin, Mikhail"]
[WhiteFideId "1136194"]
[BlackFideId "4165314"]
[WhiteElo "2242"]
[BlackElo "2422"]
[Result "1-0"]
[Round "08"]
[TimeControl "180+1"]
[Date "2022.08.02"]
[WhiteClock "0:00:49"]
[BlackClock "0:00:03"]

1. Nf3 {[%clk 0:03:00]}  g6 {[%clk 0:02:49]} 2. g3 {[%clk 0:03:01]}  Bg7 {[%clk 0:02:48]} 3. d4 {[%clk 0:03:01]}  Nf6 {[%clk 0:02:47]} 4. Bg2 {[%clk 0:03:01]}  O-O {[%clk 0:02:47]} 5. O-O {[%clk 0:03:02]}  d5 {[%clk 0:02:47]} 6. c4 {[%clk 0:03:02]}  c6 {[%clk 0:02:47]} 7. Qb3 {[%clk 0:02:55]}  Qb6 {[%clk 0:02:45]} 8. Nc3 {[%clk 0:02:56]}  dxc4 {[%clk 0:02:41]} 9. Qxc4 {[%clk 0:02:56]}  Be6 {[%clk 0:02:41]} 10. Qa4 {[%clk 0:02:56]}  a5 {[%clk 0:02:37]} 11. e4 {[%clk 0:02:51]}  Qb4 {[%clk 0:02:35]} 12. Qc2 {[%clk 0:02:50]}  Na6 {[%clk 0:02:31]} 13. Be3 {[%clk 0:02:47]}  Rfd8 {[%clk 0:02:30]} 14. h3 {[%clk 0:02:44]}  Rac8 {[%clk 0:02:22]} 15. Rfd1 {[%clk 0:02:43]}  Nc7 {[%clk 0:02:20]} 16. Ng5 {[%clk 0:02:38]}  Bc4 {[%clk 0:02:11]} 17. b3 {[%clk 0:02:34]}  Be6 {[%clk 0:01:47]} 18. Nxe6 {[%clk 0:02:29]}  fxe6 {[%clk 0:01:39]} 19. a3 {[%clk 0:02:27]}  Qb6 {[%clk 0:01:40]} 20. d5 {[%clk 0:02:19]}  Qa6 {[%clk 0:01:40]} 21. Bf1 {[%clk 0:02:18]}  b5 {[%clk 0:01:30]} 22. dxe6 {[%clk 0:02:03]}  Qb7 {[%clk 0:01:14]} 23. Rxd8+ {[%clk 0:01:51]}  Rxd8 {[%clk 0:01:12]} 24. Rd1 {[%clk 0:01:52]}  Nxe6 {[%clk 0:01:10]} 25. Rxd8+ {[%clk 0:01:51]}  Nxd8 {[%clk 0:01:11]} 26. e5 {[%clk 0:01:47]}  Nd7 {[%clk 0:01:02]} 27. f4 {[%clk 0:01:46]}  Ne6 {[%clk 0:00:56]} 28. Ne4 {[%clk 0:01:45]}  Nb6 {[%clk 0:00:46]} 29. Nc5 {[%clk 0:01:38]}  Nxc5 {[%clk 0:00:45]} 30. Bxc5 {[%clk 0:01:39]}  Nd5 {[%clk 0:00:46]} 31. Qe4 {[%clk 0:01:34]}  e6 {[%clk 0:00:45]} 32. h4 {[%clk 0:01:33]}  Bf8 {[%clk 0:00:45]} 33. Bxf8 {[%clk 0:01:32]}  Kxf8 {[%clk 0:00:45]} 34. Qd4 {[%clk 0:01:26]}  b4 {[%clk 0:00:31]} 35. Qc5+ {[%clk 0:01:20]}  Qe7 {[%clk 0:00:24]} 36. axb4 {[%clk 0:01:14]}  Qxc5+ {[%clk 0:00:19]} 37. bxc5 {[%clk 0:01:15]}  Ke7 {[%clk 0:00:12]} 38. Kf2 {[%clk 0:01:14]}  Nc3 {[%clk 0:00:06]} 39. Ke3 {[%clk 0:01:09]}  Nd5+ {[%clk 0:00:05]} 40. Kd4 {[%clk 0:01:08]}  Kd7 {[%clk 0:00:05]} 41. Bc4 {[%clk 0:01:07]}  Nb4 {[%clk 0:00:05]} 42. g4 {[%clk 0:01:05]}  Nc2+ {[%clk 0:00:05]} 43. Ke4 {[%clk 0:01:01]}  Nb4 {[%clk 0:00:04]} 44. f5 {[%clk 0:01:01]}  gxf5+ {[%clk 0:00:04]} 45. gxf5 {[%clk 0:01:01]}  exf5+ {[%clk 0:00:04]} 46. Kxf5 {[%clk 0:01:02]}  Ke7 {[%clk 0:00:05]} 47. Kg5 {[%clk 0:00:58]}  Nc2 {[%clk 0:00:03]} 48. Bg8 {[%clk 0:00:49]} 1-0


[Site "https://www.chess.com"]

[Event "Titled Tuesday Blitz August 02 Early 2022"]
[White "Quirke, Jeffrey"]
[Black "Ajay, Karthikeyan"]
[WhiteFideId "2013029"]
[BlackFideId "35011685"]
[WhiteElo "2236"]
[BlackElo "2183"]
[Result "0-1"]
[Round "08"]
[TimeControl "180+1"]
[Date "2022.08.02"]
[WhiteClock "0:00:02"]
[BlackClock "0:00:03"]

1. d4 {[%clk 0:03:00]}  Nf6 {[%clk 0:02:57]} 2. c4 {[%clk 0:03:00]}  g6 {[%clk 0:02:56]} 3. Nc3 {[%clk 0:03:00]}  Bg7 {[%clk 0:02:43]} 4. e4 {[%clk 0:03:00]}  d6 {[%clk 0:02:43]} 5. Be2 {[%clk 0:03:00]}  O-O {[%clk 0:02:41]} 6. Nf3 {[%clk 0:03:00]}  e5 {[%clk 0:02:40]} 7. O-O {[%clk 0:03:00]}  Nc6 {[%clk 0:02:39]} 8. Be3 {[%clk 0:03:00]}  Ng4 {[%clk 0:02:34]} 9. Bg5 {[%clk 0:02:59]}  f6 {[%clk 0:02:35]} 10. Bh4 {[%clk 0:03:00]}  g5 {[%clk 0:02:24]} 11. Bg3 {[%clk 0:02:58]}  Nh6 {[%clk 0:02:23]} 12. dxe5 {[%clk 0:02:57]}  dxe5 {[%clk 0:02:22]} 13. c5 {[%clk 0:02:37]}  Be6 {[%clk 0:02:18]} 14. Qa4 {[%clk 0:02:29]}  a6 {[%clk 0:01:14]} 15. Rad1 {[%clk 0:02:26]}  Qe7 {[%clk 0:01:13]} 16. b4 {[%clk 0:02:23]}  Rfd8 {[%clk 0:01:08]} 17. Nd5 {[%clk 0:02:06]}  Qf7 {[%clk 0:01:06]} 18. Bc4 {[%clk 0:02:05]}  Kh8 {[%clk 0:00:33]} 19. Qb3 {[%clk 0:01:53]}  g4 {[%clk 0:00:31]} 20. Nh4 {[%clk 0:01:49]}  Nd4 {[%clk 0:00:31]} 21. Rxd4 {[%clk 0:01:34]}  exd4 {[%clk 0:00:32]} 22. f4 {[%clk 0:00:56]}  c6 {[%clk 0:00:28]} 23. Nb6 {[%clk 0:00:55]}  Bxc4 {[%clk 0:00:28]} 24. Nxc4 {[%clk 0:00:54]}  f5 {[%clk 0:00:28]} 25. e5 {[%clk 0:00:50]}  d3 {[%clk 0:00:19]} 26. Nd6 {[%clk 0:00:48]}  Qxb3 {[%clk 0:00:18]} 27. axb3 {[%clk 0:00:49]}  Bf8 {[%clk 0:00:13]} 28. Rd1 {[%clk 0:00:42]}  a5 {[%clk 0:00:13]} 29. bxa5 {[%clk 0:00:41]}  Rxa5 {[%clk 0:00:12]} 30. Bf2 {[%clk 0:00:34]}  Bxd6 {[%clk 0:00:05]} 31. cxd6 {[%clk 0:00:33]}  Rd5 {[%clk 0:00:05]} 32. b4 {[%clk 0:00:28]}  Kg8 {[%clk 0:00:05]} 33. Bc5 {[%clk 0:00:25]}  Kf7 {[%clk 0:00:06]} 34. Kf2 {[%clk 0:00:24]}  Ke6 {[%clk 0:00:06]} 35. Ke3 {[%clk 0:00:24]}  Nf7 {[%clk 0:00:04]} 36. Rxd3 {[%clk 0:00:23]}  Rxd3+ {[%clk 0:00:03]} 37. Kxd3 {[%clk 0:00:24]}  Ra8 {[%clk 0:00:03]} 38. Nxf5 {[%clk 0:00:02]}  Kxf5 {[%clk 0:00:03]} 39. d7 {[%clk 0:00:02]}  Rd8 {[%clk 0:00:03]} 0-1


[Site "https://www.chess.com"]

[Event "Titled Tuesday Blitz August 02 Early 2022"]
[White "Saydaliev, Saidakbar"]
[Black "Khripachenko, Alexander"]
[WhiteFideId "14203693"]
[BlackFideId "54184975"]
[WhiteElo "2265"]
[BlackElo "2147"]
[Result "0-1"]
[Round "08"]
[TimeControl "180+1"]
[Date "2022.08.02"]
[WhiteClock "0:00:03"]
[BlackClock "0:02:02"]

1. e4 {[%clk 0:03:00]}  c6 {[%clk 0:02:59]} 2. Nf3 {[%clk 0:02:59]}  d5 {[%clk 0:02:59]} 3. Nc3 {[%clk 0:03:00]}  dxe4 {[%clk 0:02:59]} 4. Nxe4 {[%clk 0:03:00]}  Nf6 {[%clk 0:03:00]} 5. Qe2 {[%clk 0:03:00]}  Nxe4 {[%clk 0:03:01]} 6. Qxe4 {[%clk 0:03:00]}  Qa5 {[%clk 0:03:02]} 7. Bc4 {[%clk 0:02:52]}  Bf5 {[%clk 0:03:02]} 8. Qe2 {[%clk 0:02:49]}  Nd7 {[%clk 0:02:57]} 9. c3 {[%clk 0:02:38]}  e6 {[%clk 0:02:56]} 10. d4 {[%clk 0:02:35]}  Be7 {[%clk 0:02:55]} 11. h3 {[%clk 0:02:31]}  O-O {[%clk 0:02:54]} 12. O-O {[%clk 0:02:29]}  Rad8 {[%clk 0:02:47]} 13. b4 {[%clk 0:02:16]}  Qc7 {[%clk 0:02:45]} 14. a4 {[%clk 0:02:13]}  a5 {[%clk 0:02:44]} 15. Ba3 {[%clk 0:01:27]}  axb4 {[%clk 0:02:37]} 16. Bxb4 {[%clk 0:01:27]}  Bxb4 {[%clk 0:02:38]} 17. cxb4 {[%clk 0:01:28]}  Nb6 {[%clk 0:02:39]} 18. Bb3 {[%clk 0:01:27]}  Nd5 {[%clk 0:02:39]} 19. b5 {[%clk 0:01:24]}  cxb5 {[%clk 0:02:37]} 20. Qxb5 {[%clk 0:00:56]}  Nc3 {[%clk 0:02:24]} 21. Qe5 {[%clk 0:00:38]}  Qxe5 {[%clk 0:02:19]} 22. dxe5 {[%clk 0:00:37]}  Be4 {[%clk 0:02:18]} 23. Ng5 {[%clk 0:00:28]}  Bc6 {[%clk 0:02:18]} 24. Rfe1 {[%clk 0:00:18]}  Rd2 {[%clk 0:02:16]} 25. a5 {[%clk 0:00:15]}  h6 {[%clk 0:02:15]} 26. Nf3 {[%clk 0:00:16]}  Bxf3 {[%clk 0:02:16]} 27. gxf3 {[%clk 0:00:16]}  Rc8 {[%clk 0:02:15]} 28. Kg2 {[%clk 0:00:15]}  Nb5 {[%clk 0:02:13]} 29. Rec1 {[%clk 0:00:14]}  Rxc1 {[%clk 0:02:11]} 30. Rxc1 {[%clk 0:00:15]}  Nd4 {[%clk 0:02:12]} 31. Rc8+ {[%clk 0:00:14]}  Kh7 {[%clk 0:02:11]} 32. Bc4 {[%clk 0:00:15]}  Nf5 {[%clk 0:02:02]} 33. Rb8 {[%clk 0:00:13]}  Ne3+ {[%clk 0:02:01]} 34. Kg3 {[%clk 0:00:11]}  Nxc4 {[%clk 0:02:02]} 35. Rxb7 {[%clk 0:00:11]}  Nxe5 {[%clk 0:02:02]} 36. a6 {[%clk 0:00:11]}  Ra2 {[%clk 0:02:02]} 37. a7 {[%clk 0:00:09]}  g5 {[%clk 0:02:01]} 38. h4 {[%clk 0:00:06]}  Ra3 {[%clk 0:02:01]} 39. hxg5 {[%clk 0:00:06]}  hxg5 {[%clk 0:02:02]} 40. Kg2 {[%clk 0:00:03]}  Kg6 {[%clk 0:02:02]} 0-1


[Site "https://www.chess.com"]

[Event "Titled Tuesday Blitz August 02 Early 2022"]
[White "Sevian, Samuel"]
[Black "Andreikin, Dmitry"]
[WhiteFideId "2040506"]
[BlackFideId "4158814"]
[WhiteElo "3035"]
[BlackElo "3130"]
[Result "1-0"]
[Round "08"]
[TimeControl "180+1"]
[Date "2022.08.02"]
[WhiteClock "0:00:51"]
[BlackClock "0:01:30"]

1. e4 {[%clk 0:03:00]}  e5 {[%clk 0:03:00]} 2. Nf3 {[%clk 0:03:00]}  Nf6 {[%clk 0:03:01]} 3. d4 {[%clk 0:02:59]}  Nxe4 {[%clk 0:03:00]} 4. Bd3 {[%clk 0:02:59]}  d5 {[%clk 0:03:01]} 5. Nxe5 {[%clk 0:02:59]}  Nd7 {[%clk 0:03:01]} 6. Nxd7 {[%clk 0:02:58]}  Bxd7 {[%clk 0:03:02]} 7. O-O {[%clk 0:02:59]}  Bd6 {[%clk 0:03:02]} 8. Nc3 {[%clk 0:02:59]}  Nxc3 {[%clk 0:03:01]} 9. bxc3 {[%clk 0:03:00]}  O-O {[%clk 0:03:00]} 10. Qh5 {[%clk 0:03:00]}  f5 {[%clk 0:03:01]} 11. Re1 {[%clk 0:03:01]}  c6 {[%clk 0:03:00]} 12. Bg5 {[%clk 0:03:01]}  Qc7 {[%clk 0:02:59]} 13. Re3 {[%clk 0:03:01]}  Be8 {[%clk 0:02:49]} 14. Qh4 {[%clk 0:03:00]}  Bg6 {[%clk 0:02:48]} 15. Rae1 {[%clk 0:02:53]}  Qd7 {[%clk 0:02:37]} 16. c4 {[%clk 0:02:03]}  dxc4 {[%clk 0:02:21]} 17. Bxc4+ {[%clk 0:02:01]}  Bf7 {[%clk 0:02:22]} 18. Rh3 {[%clk 0:01:00]}  Bxc4 {[%clk 0:02:15]} 19. Qxh7+ {[%clk 0:00:59]}  Kf7 {[%clk 0:02:15]} 20. Rh6 {[%clk 0:00:59]}  Bxh2+ {[%clk 0:01:50]} 21. Kxh2 {[%clk 0:00:53]}  Qxd4 {[%clk 0:01:30]} 22. Re7# {[%clk 0:00:51]} 1-0


[Site "https://www.chess.com"]

[Event "Titled Tuesday Blitz August 02 Early 2022"]
[White "Subaste, Arman"]
[Black "Papasimakopoulos, Alexandros"]
[WhiteFideId "5221080"]
[BlackFideId "4244125"]
[WhiteElo "1856"]
[BlackElo "2340"]
[Result "1-0"]
[Round "08"]
[TimeControl "180+1"]
[Date "2022.08.02"]
[WhiteClock "0:01:07"]
[BlackClock "0:01:12"]

1. d4 {[%clk 0:02:59]}  e6 {[%clk 0:02:59]} 2. Nf3 {[%clk 0:02:59]}  Nf6 {[%clk 0:02:59]} 3. g3 {[%clk 0:02:59]}  b5 {[%clk 0:02:59]} 4. Bg2 {[%clk 0:03:00]}  Bb7 {[%clk 0:02:59]} 5. O-O {[%clk 0:02:59]}  c5 {[%clk 0:02:59]} 6. a4 {[%clk 0:02:59]}  b4 {[%clk 0:02:59]} 7. c3 {[%clk 0:02:59]}  Na6 {[%clk 0:02:59]} 8. Re1 {[%clk 0:02:57]}  Be7 {[%clk 0:02:59]} 9. Be3 {[%clk 0:02:57]}  O-O {[%clk 0:02:57]} 10. dxc5 {[%clk 0:02:56]}  bxc3 {[%clk 0:02:57]} 11. Nxc3 {[%clk 0:02:52]}  Nxc5 {[%clk 0:02:57]} 12. b4 {[%clk 0:02:48]}  Nce4 {[%clk 0:02:57]} 13. Nxe4 {[%clk 0:02:48]}  Bxe4 {[%clk 0:02:57]} 14. b5 {[%clk 0:02:49]}  Nd5 {[%clk 0:02:51]} 15. Bd4 {[%clk 0:02:45]}  a6 {[%clk 0:02:47]} 16. Nd2 {[%clk 0:02:34]}  Bxg2 {[%clk 0:02:47]} 17. Kxg2 {[%clk 0:02:35]}  axb5 {[%clk 0:02:48]} 18. axb5 {[%clk 0:02:36]}  Rb8 {[%clk 0:02:48]} 19. e4 {[%clk 0:02:30]}  Nf6 {[%clk 0:02:43]} 20. b6 {[%clk 0:02:28]}  d5 {[%clk 0:02:43]} 21. Rb1 {[%clk 0:02:24]}  Nxe4 {[%clk 0:02:40]} 22. Nxe4 {[%clk 0:02:23]}  dxe4 {[%clk 0:02:41]} 23. b7 {[%clk 0:02:13]}  Qd5 {[%clk 0:02:31]} 24. Ba7 {[%clk 0:02:09]}  Qc6 {[%clk 0:02:13]} 25. Bxb8 {[%clk 0:02:07]}  Rxb8 {[%clk 0:02:13]} 26. Qc1 {[%clk 0:02:03]}  Bc5 {[%clk 0:02:08]} 27. Re3 {[%clk 0:01:55]}  f5 {[%clk 0:02:01]} 28. Rc3 {[%clk 0:01:54]}  e3+ {[%clk 0:02:01]} 29. f3 {[%clk 0:01:54]}  Rxb7 {[%clk 0:01:49]} 30. Rxc5 {[%clk 0:01:42]}  Qxc5 {[%clk 0:01:48]} 31. Qxc5 {[%clk 0:01:42]}  Rxb1 {[%clk 0:01:49]} 32. Qxe3 {[%clk 0:01:39]}  Kf7 {[%clk 0:01:49]} 33. Qa7+ {[%clk 0:01:39]}  Kf6 {[%clk 0:01:49]} 34. h4 {[%clk 0:01:35]}  Rb2+ {[%clk 0:01:43]} 35. Kh3 {[%clk 0:01:36]}  Rb3 {[%clk 0:01:44]} 36. Qa8 {[%clk 0:01:33]}  Kf7 {[%clk 0:01:41]} 37. h5 {[%clk 0:01:33]}  h6 {[%clk 0:01:35]} 38. Qa7+ {[%clk 0:01:24]}  Kf6 {[%clk 0:01:34]} 39. Qd4+ {[%clk 0:01:24]}  Kf7 {[%clk 0:01:33]} 40. Qf4 {[%clk 0:01:22]}  Rb7 {[%clk 0:01:32]} 41. g4 {[%clk 0:01:21]}  Rb5 {[%clk 0:01:26]} 42. g5 {[%clk 0:01:11]}  hxg5 {[%clk 0:01:12]} 43. Qxg5 {[%clk 0:01:12]}  Re5 {[%clk 0:01:11]} 44. Qg6+ {[%clk 0:01:06]}  Kf8 {[%clk 0:01:11]} 45. h6 {[%clk 0:01:07]}  gxh6 {[%clk 0:01:12]} 46. Qf6+ {[%clk 0:01:07]} 1-0


[Site "https://www.chess.com"]

[Event "Titled Tuesday Blitz August 02 Early 2022"]
[White "Swiercz, Dariusz"]
[Black "Aradhya, Garg"]
[WhiteFideId "1126881"]
[BlackFideId "25006746"]
[WhiteElo "2911"]
[BlackElo "2675"]
[Result "0-1"]
[Round "08"]
[TimeControl "180+1"]
[Date "2022.08.02"]
[WhiteClock "0:00:02"]
[BlackClock "0:00:13"]

1. Nf3 {[%clk 0:03:00]}  d5 {[%clk 0:02:59]} 2. d4 {[%clk 0:02:56]}  Nf6 {[%clk 0:02:58]} 3. Bf4 {[%clk 0:02:56]}  c5 {[%clk 0:02:58]} 4. c3 {[%clk 0:02:55]}  Nc6 {[%clk 0:02:55]} 5. e3 {[%clk 0:02:54]}  Qb6 {[%clk 0:02:54]} 6. Qc1 {[%clk 0:02:33]}  Bf5 {[%clk 0:02:53]} 7. Nbd2 {[%clk 0:02:32]}  e6 {[%clk 0:02:52]} 8. Be2 {[%clk 0:02:32]}  Rc8 {[%clk 0:02:51]} 9. O-O {[%clk 0:02:30]}  h6 {[%clk 0:02:50]} 10. h3 {[%clk 0:02:30]}  Be7 {[%clk 0:02:49]} 11. Nb3 {[%clk 0:02:29]}  c4 {[%clk 0:02:45]} 12. Nbd2 {[%clk 0:02:27]}  Qd8 {[%clk 0:02:45]} 13. Bd1 {[%clk 0:02:27]}  O-O {[%clk 0:02:44]} 14. Bc2 {[%clk 0:02:28]}  b5 {[%clk 0:02:44]} 15. Qb1 {[%clk 0:02:21]}  Bxc2 {[%clk 0:02:35]} 16. Qxc2 {[%clk 0:02:21]}  Bd6 {[%clk 0:02:36]} 17. Bxd6 {[%clk 0:02:17]}  Qxd6 {[%clk 0:02:35]} 18. e4 {[%clk 0:02:18]}  dxe4 {[%clk 0:02:08]} 19. Nxe4 {[%clk 0:02:18]}  Qe7 {[%clk 0:02:07]} 20. Rfe1 {[%clk 0:02:16]}  Rfd8 {[%clk 0:02:07]} 21. Nxf6+ {[%clk 0:02:06]}  Qxf6 {[%clk 0:02:07]} 22. Ne5 {[%clk 0:02:07]}  Ne7 {[%clk 0:01:46]} 23. Re3 {[%clk 0:01:59]}  Qf5 {[%clk 0:01:44]} 24. Qe2 {[%clk 0:01:53]}  Rf8 {[%clk 0:01:12]} 25. Re1 {[%clk 0:01:45]}  Rce8 {[%clk 0:00:35]} 26. Rf3 {[%clk 0:01:40]}  Qh7 {[%clk 0:00:34]} 27. Nd7 {[%clk 0:01:14]}  Nd5 {[%clk 0:00:33]} 28. Nxf8 {[%clk 0:01:08]}  Rxf8 {[%clk 0:00:33]} 29. h4 {[%clk 0:01:01]}  Qg6 {[%clk 0:00:31]} 30. Qe5 {[%clk 0:00:52]}  Qc2 {[%clk 0:00:28]} 31. Rg3 {[%clk 0:00:50]}  g6 {[%clk 0:00:28]} 32. Re2 {[%clk 0:00:37]}  Qc1+ {[%clk 0:00:23]} 33. Kh2 {[%clk 0:00:37]}  Qf4 {[%clk 0:00:23]} 34. Qxf4 {[%clk 0:00:28]}  Nxf4 {[%clk 0:00:24]} 35. Rd2 {[%clk 0:00:22]}  Rb8 {[%clk 0:00:24]} 36. Rf3 {[%clk 0:00:22]}  Nd5 {[%clk 0:00:22]} 37. a3 {[%clk 0:00:17]}  a5 {[%clk 0:00:21]} 38. Rc2 {[%clk 0:00:16]}  Kg7 {[%clk 0:00:20]} 39. Kg1 {[%clk 0:00:16]}  b4 {[%clk 0:00:20]} 40. cxb4 {[%clk 0:00:15]}  axb4 {[%clk 0:00:21]} 41. Rxc4 {[%clk 0:00:15]}  bxa3 {[%clk 0:00:18]} 42. bxa3 {[%clk 0:00:16]}  Rb1+ {[%clk 0:00:17]} 43. Kh2 {[%clk 0:00:17]}  Rd1 {[%clk 0:00:17]} 44. Ra4 {[%clk 0:00:15]}  f5 {[%clk 0:00:17]} 45. Rb3 {[%clk 0:00:12]}  Kf6 {[%clk 0:00:16]} 46. Rb8 {[%clk 0:00:10]}  g5 {[%clk 0:00:16]} 47. h5 {[%clk 0:00:09]}  g4 {[%clk 0:00:16]} 48. Rg8 {[%clk 0:00:08]}  Nf4 {[%clk 0:00:16]} 49. Raa8 {[%clk 0:00:05]}  Rxd4 {[%clk 0:00:15]} 50. Raf8+ {[%clk 0:00:04]}  Ke5 {[%clk 0:00:16]} 51. Rd8 {[%clk 0:00:02]}  Ra4 {[%clk 0:00:14]} 52. Ra8 {[%clk 0:00:02]}  Re4 {[%clk 0:00:14]} 53. Ra5+ {[%clk 0:00:01]}  Kf6 {[%clk 0:00:13]} 54. g3 {[%clk 0:00:01]}  Nxh5 {[%clk 0:00:13]} 55. Rg6+ {[%clk 0:00:02]}  Kxg6 {[%clk 0:00:13]} 0-1


[Site "https://www.chess.com"]

[Event "Titled Tuesday Blitz August 02 Early 2022"]
[White "Vachylia, Andrii"]
[Black "Vakhlamov, Igor L."]
[WhiteFideId "14137224"]
[BlackFideId "24126748"]
[WhiteElo "2318"]
[BlackElo "2401"]
[Result "0-1"]
[Round "08"]
[TimeControl "180+1"]
[Date "2022.08.02"]
[WhiteClock "0:00:12"]
[BlackClock "0:00:31"]

1. e4 {[%clk 0:02:54]}  c5 {[%clk 0:03:00]} 2. Nf3 {[%clk 0:02:54]}  Nc6 {[%clk 0:03:00]} 3. Bb5 {[%clk 0:02:53]}  Nf6 {[%clk 0:03:00]} 4. Bxc6 {[%clk 0:02:49]}  dxc6 {[%clk 0:03:01]} 5. d3 {[%clk 0:02:50]}  Bg4 {[%clk 0:03:02]} 6. h3 {[%clk 0:02:50]}  Bh5 {[%clk 0:03:02]} 7. Bf4 {[%clk 0:02:51]}  Nd7 {[%clk 0:02:58]} 8. g4 {[%clk 0:02:50]}  Bg6 {[%clk 0:02:58]} 9. Nbd2 {[%clk 0:02:51]}  e6 {[%clk 0:02:31]} 10. Qe2 {[%clk 0:02:46]}  Be7 {[%clk 0:02:24]} 11. O-O-O {[%clk 0:02:35]}  Qa5 {[%clk 0:02:21]} 12. Kb1 {[%clk 0:02:33]}  b5 {[%clk 0:02:21]} 13. e5 {[%clk 0:02:19]}  O-O-O {[%clk 0:02:18]} 14. Ne4 {[%clk 0:02:14]}  Rhe8 {[%clk 0:02:01]} 15. Nfd2 {[%clk 0:02:05]}  Qa4 {[%clk 0:01:43]} 16. Bg3 {[%clk 0:02:01]}  Nb6 {[%clk 0:01:38]} 17. h4 {[%clk 0:01:49]}  h6 {[%clk 0:01:36]} 18. h5 {[%clk 0:01:50]}  Bh7 {[%clk 0:01:36]} 19. Bh4 {[%clk 0:01:50]}  Bxh4 {[%clk 0:01:25]} 20. Rxh4 {[%clk 0:01:51]}  c4 {[%clk 0:01:20]} 21. dxc4 {[%clk 0:01:20]}  Bxe4 {[%clk 0:01:08]} 22. Nxe4 {[%clk 0:01:18]}  Nxc4 {[%clk 0:01:01]} 23. Nd6+ {[%clk 0:00:37]}  Nxd6 {[%clk 0:00:53]} 24. exd6 {[%clk 0:00:38]}  Qf4 {[%clk 0:00:49]} 25. Qd3 {[%clk 0:00:34]}  Rd7 {[%clk 0:00:46]} 26. Qa3 {[%clk 0:00:24]}  Kb7 {[%clk 0:00:45]} 27. Rh3 {[%clk 0:00:22]}  Red8 {[%clk 0:00:43]} 28. Rhd3 {[%clk 0:00:19]}  Qxg4 {[%clk 0:00:40]} 29. Qc5 {[%clk 0:00:15]}  Qf5 {[%clk 0:00:36]} 30. Qc3 {[%clk 0:00:12]}  Qxh5 {[%clk 0:00:33]} 31. a4 {[%clk 0:00:12]}  a6 {[%clk 0:00:27]} 32. axb5 {[%clk 0:00:11]}  axb5 {[%clk 0:00:28]} 33. Qxg7 {[%clk 0:00:11]}  Qf5 {[%clk 0:00:26]} 34. Qxh6 {[%clk 0:00:10]}  Qxf2 {[%clk 0:00:24]} 35. Qg5 {[%clk 0:00:08]}  Ra8 {[%clk 0:00:24]} 36. Qe5 {[%clk 0:00:07]}  Qa7 {[%clk 0:00:23]} 37. b3 {[%clk 0:00:07]}  Qa2+ {[%clk 0:00:23]} 38. Kc1 {[%clk 0:00:07]}  Qa1+ {[%clk 0:00:24]} 39. Qxa1 {[%clk 0:00:07]}  Rxa1+ {[%clk 0:00:25]} 40. Kd2 {[%clk 0:00:03]}  Rxd1+ {[%clk 0:00:26]} 41. Kxd1 {[%clk 0:00:04]}  c5 {[%clk 0:00:27]} 42. Kd2 {[%clk 0:00:03]}  Kc6 {[%clk 0:00:27]} 43. Kc3 {[%clk 0:00:04]}  Rxd6 {[%clk 0:00:28]} 44. Rf3 {[%clk 0:00:05]}  f5 {[%clk 0:00:28]} 45. Re3 {[%clk 0:00:05]}  Kd5 {[%clk 0:00:28]} 46. Rd3+ {[%clk 0:00:06]}  Ke5 {[%clk 0:00:28]} 47. Rh3 {[%clk 0:00:06]}  Rd4 {[%clk 0:00:27]} 48. Rh8 {[%clk 0:00:06]}  b4+ {[%clk 0:00:28]} 49. Kb2 {[%clk 0:00:06]}  f4 {[%clk 0:00:29]} 50. Rc8 {[%clk 0:00:07]}  Kd5 {[%clk 0:00:29]} 51. Rd8+ {[%clk 0:00:07]}  Ke4 {[%clk 0:00:29]} 52. Rc8 {[%clk 0:00:08]}  Rd5 {[%clk 0:00:29]} 53. c4 {[%clk 0:00:09]}  bxc3+ {[%clk 0:00:30]} 54. Kxc3 {[%clk 0:00:10]}  f3 {[%clk 0:00:31]} 55. Kc4 {[%clk 0:00:11]}  f2 {[%clk 0:00:31]} 56. Rf8 {[%clk 0:00:11]}  Rf5 {[%clk 0:00:31]} 57. Rf6 {[%clk 0:00:12]}  Rxf6 {[%clk 0:00:31]} 0-1


[Site "https://www.chess.com"]

[Event "Titled Tuesday Blitz August 02 Early 2022"]
[White "Vovk, Orest"]
[Black "Clarke, Brandon G I"]
[WhiteFideId "14113490"]
[BlackFideId "400319"]
[WhiteElo "2203"]
[BlackElo "2414"]
[Result "0-1"]
[Round "08"]
[TimeControl "180+1"]
[Date "2022.08.02"]
[WhiteClock "0:00:06"]
[BlackClock "0:00:24"]

1. h3 {[%clk 0:02:45]}  e5 {[%clk 0:02:57]} 2. g4 {[%clk 0:02:44]}  d5 {[%clk 0:02:57]} 3. Bg2 {[%clk 0:02:44]}  c6 {[%clk 0:02:58]} 4. d4 {[%clk 0:02:44]}  e4 {[%clk 0:02:58]} 5. c4 {[%clk 0:02:43]}  Ne7 {[%clk 0:02:48]} 6. Nc3 {[%clk 0:02:43]}  Be6 {[%clk 0:02:45]} 7. Qb3 {[%clk 0:02:43]}  Qd7 {[%clk 0:02:39]} 8. Bf4 {[%clk 0:02:23]}  Ng6 {[%clk 0:02:38]} 9. Bg3 {[%clk 0:02:22]}  h5 {[%clk 0:02:39]} 10. e3 {[%clk 0:02:18]}  hxg4 {[%clk 0:02:38]} 11. cxd5 {[%clk 0:02:16]}  cxd5 {[%clk 0:02:37]} 12. hxg4 {[%clk 0:02:15]}  Rxh1 {[%clk 0:02:36]} 13. Bxh1 {[%clk 0:02:16]}  Nc6 {[%clk 0:02:34]} 14. Bxe4 {[%clk 0:01:06]}  dxe4 {[%clk 0:02:28]} 15. d5 {[%clk 0:01:06]}  Bxg4 {[%clk 0:02:06]} 16. dxc6 {[%clk 0:01:03]}  Qxc6 {[%clk 0:02:07]} 17. Nge2 {[%clk 0:00:59]}  Bxe2 {[%clk 0:01:45]} 18. Nxe2 {[%clk 0:00:54]}  Ne7 {[%clk 0:00:56]} 19. Rc1 {[%clk 0:00:37]}  Qd5 {[%clk 0:00:52]} 20. Rc7 {[%clk 0:00:29]}  Qxb3 {[%clk 0:00:47]} 21. axb3 {[%clk 0:00:30]}  b6 {[%clk 0:00:45]} 22. Nd4 {[%clk 0:00:30]}  Nd5 {[%clk 0:00:44]} 23. Rb7 {[%clk 0:00:26]}  a6 {[%clk 0:00:37]} 24. Ke2 {[%clk 0:00:18]}  g6 {[%clk 0:00:37]} 25. Bc7 {[%clk 0:00:18]}  Bc5 {[%clk 0:00:37]} 26. b4 {[%clk 0:00:13]}  Bxd4 {[%clk 0:00:33]} 27. exd4 {[%clk 0:00:14]}  b5 {[%clk 0:00:33]} 28. Bd6 {[%clk 0:00:14]}  Rc8 {[%clk 0:00:29]} 29. Bc5 {[%clk 0:00:14]}  Rc6 {[%clk 0:00:28]} 30. Ra7 {[%clk 0:00:12]}  f5 {[%clk 0:00:28]} 31. Rg7 {[%clk 0:00:10]}  Re6 {[%clk 0:00:25]} 32. f3 {[%clk 0:00:07]}  e3 {[%clk 0:00:24]} 33. Rh7 {[%clk 0:00:06]}  Nf4+ {[%clk 0:00:25]} 34. Ke1 {[%clk 0:00:05]}  e2 {[%clk 0:00:24]} 35. Kf2 {[%clk 0:00:06]}  e1=Q# {[%clk 0:00:24]} 0-1


[Site "https://www.chess.com"]